Cogmind - Beta 10.2 @@@ ROGUE MODE // 2021.12.04 @ 10:11:10 Player: OldPopsy Result: Destroyed by G-34 Mercenary with Small Laser Performance ------------- Evolutions (0) 0 Regions Visited (1) 200 Robots Destroyed (7) 35 Value Destroyed (129) 129 Prototype IDs (3) 60 Alien Tech Used (0) 0 Bonus (0) 0 TOTAL SCORE: 424 Bonus ------- None Cogmind --------- Core Integrity 0/250 Matter 280/300 Energy 500/500 System Corruption 0% Temperature Cool (6) Movement Core (400) Ox7 Location -10/Materials Parts ------- > --- POWER (1) -------- (None) > --- PROPULSION (2) --- (None) > --- UTILITY (2) ------ Large Storage Unit High-capacity Battery > --- WEAPON (2) ------- Hammer > --- INVENTORY (10) --- Light Ion Engine Light Ion Engine Small Storage Unit Peak State ------------ > --- POWER ------------ Light Ion Engine > --- PROPULSION ------- Light Treads Light Treads > --- UTILITY ---------- Small Storage Unit High-capacity Battery > --- WEAPON ----------- Medium Laser Small Laser > --- INVENTORY -------- Light Ion Engine [Rating: 7] Favorites ----------- Power Light Ion Engine Engine Light Ion Engine Propulsion Light Treads Treads Light Treads Wheel Wheel Utility High-capacity Battery Storage High-capacity Battery Weapon Small Laser Energy Gun Small Laser Ballistic Gun Light Assault Rifle Impact Weapon Hammer Build | -11 -10 ------- Run | Scr Mat Slots Evolved . | . . Power . | . . Propulsion . | . . Utility . | . . Weapon . | . . Parts Attached 13 | 6 7 Power 2 | 1 1 Engine 2 | 1 1 Core . | . . Reactor . | . . Propulsion 4 | 2 2 Treads 2 | 2 . Leg . | . . Wheel 2 | . 2 Hover . | . . Flight . | . . Utility 3 | 1 2 Device . | . . Storage 3 | 1 2 Processor . | . . Hackware . | . . Protection . | . . Artifact . | . . Weapon 4 | 2 2 Energy Gun 2 | 2 . Energy Cannon . | . . Ballistic Gun 1 | . 1 Ballistic Cannon . | . . Launcher . | . . Special Weapon . | . . Impact Weapon 1 | . 1 Slashing Weapon . | . . Piercing Weapon . | . . Special Melee Weapon . | . . Unidentified Prototypes . | . . Parts Lost 5 | . 5 Power 1 | . 1 Propulsion 2 | . 2 Utility . | . . Weapon 2 | . 2 Highest Loss Streak 4 | . 4 Average Slot Usage (%) 95 | . 95 Engine 13 | . 13 Treads 22 | . 22 Wheel 4 | . 4 Storage 27 | . 27 Energy Gun 20 | . 20 Ballistic Gun 2 | . 2 Impact Weapon 2 | . 2 Naked Turns . | . . Heaviest Build 28 | 10 28 Greatest Support 40 | 40 40 Greatest Overweight (x) 1 | . 1 Average Overweight (x) . | . . Largest Inventory Capacity 10 | 6 10 Average Capacity 6 | 5 6 Most Carried 6 | 2 6 Average Carried 1 | . 1 Final Capacity 10 | 6 10 Final Carried 3 | 1 3 Class Distribution -------------------- 100% | Mutant Dominant Class ---------------- Mutant | -10/Materials Resources | -11 -10 ----------- Run | Scr Mat Matter Collected 273 | 203 70 Remotely . | . . Salvage Created 165 | . 165 Parts 16 | . 16 Haulers Intercepted 1 | . 1 Recyclers Shooed . | . . Parts Field Recycled . | . . Retrieved Matter . | . . Parts Self-Destructed . | . . Prevented . | . . Kills | -11 -10 ------- Run | Scr Mat Combat Hostiles Destroyed 5 | . 5 Melee 1 | . 1 Guns 4 | . 4 Classes Destroyed 4 | . 4 Hauler 1 | . 1 Watcher 1 | . 1 Swarmer 3 | . 3 Grunt 2 | . 2 Best Kill Streak 3 | . 3 Combat Bots Only 3 | . 3 Max Kills in Single Turn 1 | . 1 Gunslinging . | . . Exploded . | . . Melee 1 | . 1 Uniques/NPCs Destroyed . | . . Combat | -11 -10 -------- Run | Scr Mat Damage Taken 771 | . 771 Core 258 | . 258 Absorbed by Shields . | . . Core Remaining (%) 100 | 100 . Volleys Fired 16 | . 16 Largest 2 | . 2 Hottest 90 | . 90 Shots Fired 24 | . 24 Gun 24 | . 24 Cannon . | . . Launcher . | . . Special . | . . Kinetic 4 | . 4 Thermal 20 | . 20 Explosive . | . . Electromagnetic . | . . Robot Hit Streak 5 | . 5 Robot Miss Streak 1 | . 1 Penetration Max . | . . Secondary Targets . | . . Shots Hit Robots 22 | . 22 Core Hits 9 | . 9 Critical Hits . | . . Critical Kills . | . . Critical Parts Destroyed . | . . Melee Attacks 10 | . 10 Impact 10 | . 10 Slashing . | . . Piercing . | . . Sneak Attacks . | . . Combat Hostiles . | . . Follow-up Attacks . | . . Damage Inflicted 333 | . 333 Guns 192 | . 192 Cannons . | . . Explosions . | . . Melee 129 | . 129 Ramming 12 | . 12 Kinetic 27 | . 27 Thermal 165 | . 165 Explosive . | . . Electromagnetic . | . . Impact 129 | . 129 Slashing . | . . Piercing . | . . Highest Corruption . | . . Average Corruption . | . . Corruption Purged . | . . Overload Shots . | . . Overflow Damage 13 | . 13 Projectiles . | . . Explosions . | . . Melee 13 | . 13 Knockbacks 1 | . 1 Impact 1 | . 1 Kinetic . | . . Secondary . | . . Self-Inflicted Damage . | . . Shots . | . . Rammed 9 | . 9 Targets Rammed 11 | . 11 Kicked . | . . Crushed 2 | . 2 Highest Temperature 102 | . 102 Average Temperature 42 | . 42 Received Heat Transfer 402 | . 402 Siege Activations . | . . Robots Corrupted . | . . Combat Hostiles . | . . Parts Fried . | . . Impact Corruptions 1 | . 1 Robots Melted . | . . Combat Hostiles . | . . Parts Melted . | . . Heat Transferred 398 | . 398 Parts Sabotaged . | . . Parts Stolen . | . . Parts Stripped . | . . Power Chain Reactions . | . . Missiles Intercepted . | . . Alert | -11 -10 ------- Run | Scr Mat Peak Influence 194 | . 194 Initial . | . . Average 72 | . 86 Maximum Alert Level . | . . Low Security (%) 100 | 100 100 Level 1 . | . . Level 2 . | . . Level 3 . | . . Level 4 . | . . Level 5 . | . . High Security . | . . Max Security . | . . Squads Dispatched 1 | . 1 Investigation 1 | . 1 Extermination . | . . Reinforcement . | . . Assault . | . . Garrison . | . . Intercept . | . . Construction Impeded . | . . Haulers Reinforced . | . . Stealth | -11 -10 --------- Run | Scr Mat Distress Signals . | . . Communications Jammed . | . . Distress Signals . | . . Times Spotted 14 | . 14 Peak Tracking Total 5 | . 5 Tactical Retreats . | . . Traps | -11 -10 ------- Run | Scr Mat Traps Triggered . | . . Indirectly . | . . Trap Hack Attempts . | . . Triggered . | . . Disarmed . | . . Reprogrammed . | . . Reused . | . . Traps Extracted . | . . Installed . | . . Triggered . | . . Machines | -11 -10 ---------- Run | Scr Mat Machines Disabled . | . . Max in Single Turn . | . . Machines Sabotaged . | . . Garrisons Compromised . | . . Overloaded Fab Kills . | . . Fab Network Shutdowns . | . . Hacking | -11 -10 --------- Run | Scr Mat Machines Accessed 3 | . 3 Terminals 2 | . 2 Fabricators . | . . Repair Stations . | . . Recycling Units 1 | . 1 Scanalyzers . | . . Garrison Access . | . . Total Hacks 15 | . 15 Successful 9 | . 9 Failed 6 | . 6 Catastrophic . | . . Database Lockouts . | . . Manual . | . . Terminals 11 | . 11 Fabricators . | . . Repair Stations . | . . Recycling Units 4 | . 4 Scanalyzers . | . . Garrison Access . | . . Terminal Hacks 7 | . 7 Record 2 | . 2 Robot Analysis 1 | . 1 Prototype ID Bank 2 | . 2 Maintenance Status 1 | . 1 Investigation Status 1 | . 1 Fabricator Hacks . | . . Repair Station Hacks . | . . Recycling Unit Hacks 2 | . 2 Process 1 | . 1 Retrieve Components 1 | . 1 Scanalyzer . | . . Garrison Access Hacks . | . . Unauthorized Hacks . | . . Terminals . | . . Fabricators . | . . Repair Stations . | . . Recycling Units . | . . Scanalyzers . | . . Garrison Access . | . . Data Cores Recovered . | . . Used . | . . Hacking Detections 3 | . 3 Full Trace Events 1 | . 1 Feedback Events . | . . Feedback Blocked . | . . Robot Schematics Acquired . | . . Robots Built . | . . Matter . | . . Time . | . . Total Robot Build Rating . | . . Part Schematics Acquired . | . . Parts Built . | . . Matter . | . . Time . | . . Total Part Build Rating . | . . Parts Repaired . | . . Time . | . . Parts Recycled . | . . Recycled Matter 26 | . 26 Retrieved Matter . | . . Retrieved Components . | . . Parts Scanalyzed . | . . Part Schematics Acquired . | . . Parts Damaged . | . . Bothacking | -11 -10 ------------ Run | Scr Mat Used RIF Installer . | . . Robots Hacked . | . . Non-combat . | . . Combat . | . . Robot Hacks Applied . | . . Relay Couplers Released . | . . Robots Rewired . | . . Allies Hacked . | . . Hacks Repelled . | . . Allies | -11 -10 -------- Run | Scr Mat Total Allies . | . . Largest Group . | . . Highest-Rated Group . | . . Highest-Rated Ally . | . . Total Orders . | . . Ally Attacks . | . . Total Damage . | . . Kills . | . . Allies Corrupted . | . . Allies Melted . | . . Intel | -11 -10 ------- Run | Scr Mat Robot Analysis Total 1 | . 1 Derelict Logs Recovered . | . . Drone Launches . | . . Drone Recoveries . | . . Exploration | -11 -10 ------------- Run | Scr Mat Turns Passed 505 | 78 427 Spaces Moved 263 | 37 226 Core 10 | 10 . Treads 200 | 27 173 Legs . | . . Wheels 53 | . 53 Hover . | . . Flight . | . . Fastest Speed 50 | 50 80 Average Speed 140 | 130 142 Slowest Speed 160 | 160 160 Overloaded Moves . | . . Propulsion Burnouts . | . . Robots Hopped . | . . Cave-ins Triggered . | . . Exploration Rate (%) 21 | 3 39 Regions Visited 1 Branch Regions . Pre-discovered Areas . | . . Known Exits Taken . | . . Unknown Exits Taken 1 | 1 . Scrap Searched . | . . Spaces Dug . | . . Terrain Destroyed . | . . Melee . | . . Projectile . | . . AOE . | . . Terrain Rammed . | . . Walls Destroyed . | . . Machines Disabled . | . . Actions | -11 -10 --------- Run | Scr Mat Total 352 | 67 285 Wait 23 | 18 5 Move 262 | 36 226 Hop . | . . Pick Up 14 | 7 7 Fast Attach . | . . Attach 8 | 6 2 Detach . | . . Swap 5 | . 5 Drop 3 | . 3 Fire 16 | . 16 Melee 10 | . 10 Ram . | . . Kick . | . . Crush 11 | . 11 Escape Stasis . | . . Rewire . | . . Trap . | . . Miscellaneous . | . . Route ------- -11/Scrapyard -10/Materials History --------- Turn | Location | Event 3 | -11/Scrapyard | Discovered new exit (range 15) 79 | -11/Scrapyard | Entered Materials 301 | -10/Materials | Build established: Mutant 482 | -10/Materials | Core integrity fell below 50% 498 | -10/Materials | Core integrity fell below 20% 506 | -10/Materials | Destroyed by G-34 Mercenary with Small Laser Last Messages --------------- 5 Workers 6 Builders 4 Tunnelers 1 Recycler Downloaded coordinate data. >>Enumerate(Investigations) Retrieving latest reported positions... No active investigation squads found. 00430_ ALERT: Suspicious activity at Terminal M004. Dispatching Investigation squad. 00446_ Acquired Lrg. Storage Unit. 00449_ Dropped Lgt. Assault Rifle. 00449_ Dropped Lgt. Treads. 00481_ G-34 Mercenary knocked back. 00484_ Sml. Laser destroyed. 00489_ Wheel destroyed. 00490_ Ion Engine destroyed. 00491_ Wheel destroyed. 00494_ Destroyed Heat Sink. 00494_ G-34 Mercenary system corrupted by crushing effect. Map ----- +----------------------------------------------------+ | ????# *#?????????????????????? | | ????# #??????? ???????????? | | ???## ##?????? #??????????? | | ???# ####### #??????????? | | ???# #??????????? | | ???# +??????????? | | #### #??????????? | | ####### #??????????? | | ###### ###?????# #??????????? | | ?????# #???????# #??????????? | | ?????# #???????# ##+########? | | ?????# #???????# # #? | | ????##+######### # "T" #? | | ????# ## # #? | | ????# ## # !| #? | | ????# /! ## # !| #? | | ????# ! + # ! #? | | ????# """ /! # + #? | | ????# """ ## # #? | | ????# """ "T" ## #? ?? | | ????# """ ## ####+#??? | | ????############ #??? | | ???????????????# #??? | | ??????????????##+#####+##gg#??? | | ??????????????# = # g#??? | | ??????????????# #@ #??? | | ??????????????# """ """ # #??? | | ??????????????# """ """ # #??? | | ??????????????# """ """ # #??? | | ??????????????# # #??? | | ??????????????# = # #??? | | ??????????????# [= ####??? | | ??????????????###########?????? | | ??????????????????????????????? | | ??????????????????????????????? | | ??????????????????????????????? | | | | | | | | | | | | | | | | | | | | | | | | | | | | | +----------------------------------------------------+ Best States ------------- Heat Dissipation 25 Energy Generation 10 Energy Capacity 650 Matter Stores 300 Matter Capacity 300 Sight Range 16 Terrain Scan Density 10 Evasion (%) 44 Recoil Reduction 2 Item Schematics ----------------- None Robot Schematics ------------------ None Fabricated ------------ Nothing Alien Tech Used ----------------- None Achievements -------------- None Challenges ------------ None Game ------ Seed HackingSensorJammer Manual? 0 Play Time 00:10:28 Cumulative 19.5 hours Start 2021.12.04 @ 09:54:12 End 2021.12.04 @ 10:11:10 Sessions 1 Manual Loads 0 Difficulty Rogue Special Mode None Game No. 37 Rogue 37 Adventurer 0 Explorer 0 Win Type - Total 0 Types 0/0/0/0/0/0/0/0/0 Lore% 16 Gallery% 22 Achievement% 16 Wizard Run 0 Options --------- ASCII 0 Keyboard 0 Movement Mouse Keybinds 0 Fullscreen 1 Font 18/SmallcapsGlow Map View 76x50 Tactical HUD 1 Map Filters NONE Filters NONE Steam 1 RUN: e3186dd1-8095-424b-b7cb-e7b228736284